fUST/lending_fUST_20250615
["ID","MTS","AMOUNT","RATE_DAILY","PERIOD"]
[365845370,1749954643581,-368.04094772,0.00022465,4]
[365845372,1749954643590,-233.04162,0.00022465,4]
[365845374,1749954643600,-460.0,0.00022465,4]
[365845376,1749954643609,-460.0,0.00022465,4]
[365845378,1749954643619,-460.0,0.00022465,4]
[365845380,1749954643628,-460.0,0.00022465,4]
[365845382,1749954643637,-460.0,0.00022465,4]
[365845384,1749954643648,-460.0,0.00022465,4]
[365845386,1749954643658,-460.0,0.00022465,4]
[365845388,1749954643667,-340.0,0.00022465,4]
[365845390,1749954643677,-460.89,0.00022465,4]
[365845392,1749954643687,-460.0,0.00022465,4]
[365845394,1749954643695,-460.0,0.00022465,4]
[365845396,1749954643705,-485.37,0.00022465,4]
[365845398,1749954643715,-205.61392127,0.00022465,4]
[365845400,1749954643729,-370.0,0.00022465,4]
[365845402,1749954643739,-460.0,0.00022465,4]
[365845405,1749954643748,-460.0,0.00022465,4]
[365845408,1749954643759,-460.0,0.00022465,4]
[365845410,1749954643769,-460.0,0.00022465,4]
[365845412,1749954643779,-370.0,0.00022465,4]
[365845414,1749954643787,-460.0,0.00022465,4]
[365845416,1749954643798,-460.0,0.00022465,4]
[365845418,1749954643808,-590.85,0.00022465,4]
[365845421,1749954643817,-460.0,0.00022465,4]
[365845423,1749954643827,-582.37,0.00022465,4]
[365845425,1749954643835,-460.0,0.00022465,4]
[365845427,1749954643845,-534.07313543,0.00022465,4]
[365845429,1749954643857,-460.0,0.00022465,4]
[365845431,1749954643867,-1067.47,0.00022465,4]
[365845433,1749954643876,-510.39364743,0.00022465,4]
[365845435,1749954643885,-460.0,0.00022465,4]
[365845437,1749954643895,-460.0,0.00022465,4]
[365845439,1749954643904,-460.0,0.00022465,4]
[365845441,1749954643913,-460.0,0.00022465,4]
[365845443,1749954643923,-460.0,0.00022465,4]
[365845445,1749954643932,-460.0,0.00022465,4]
[365845447,1749954643941,-460.0,0.00022465,4]
[365845449,1749954643950,-758.84,0.00022465,4]
[365845451,1749954643960,-460.0,0.00022465,4]
[365845453,1749954643969,-460.0,0.00022465,4]
[365845455,1749954643978,-460.0,0.00022465,4]
[365845457,1749954643987,-156.71780289,0.00022465,4]
[365845459,1749954643997,-460.0,0.00022465,4]
[365845461,1749954644007,-521.5254113,0.00022465,4]
[365845463,1749954644017,-460.0,0.00022465,4]
[365845465,1749954644026,-374.11644082,0.00022465,4]
[365845467,1749954644035,-460.0,0.00022465,4]
[365845469,1749954644044,-460.0,0.00022465,4]
[365845471,1749954644053,-4092.25,0.00022465,4]
[365845473,1749954644062,-463.01223309,0.00022465,4]
[365845475,1749954644071,-2832.93,0.00022465,4]
[365845477,1749954644081,-460.0,0.00022465,4]
[365845479,1749954644090,-460.0,0.00022465,4]
[365845481,1749954644099,-804.27,0.00022465,4]
[365845483,1749954644108,-831.16,0.00022465,4]
[365845485,1749954644118,-566.54,0.00022465,2]
[365845487,1749954644127,-684.13,0.00022465,4]
[365845489,1749954644136,-816.86,0.00022465,4]
[365845491,1749954644145,-609.0,0.00022465,4]
[365845493,1749954644154,-460.0,0.00022465,4]
[365845495,1749954644163,-577.95,0.00022465,4]
[365845497,1749954644173,-460.0,0.00022465,4]
[365845499,1749954644182,-460.0,0.00022465,4]
[365845501,1749954644191,-1734.77,0.00022465,4]
[365845503,1749954644200,-460.0,0.00022465,4]
[365845505,1749954644210,-481.07,0.00022465,4]
[365845507,1749954644219,-201.5102222,0.00022465,4]
[365845509,1749954644229,-460.0,0.00022465,4]
[365845511,1749954644239,-460.0,0.00022465,4]
[365845513,1749954644249,-460.0,0.00022465,4]
[365845515,1749954644259,-460.0,0.00022465,4]
[365845517,1749954644269,-695.4,0.00022465,4]
[365845519,1749954644278,-460.0,0.00022465,4]
[365845521,1749954644287,-460.0,0.00022465,4]
[365845522,1749954644296,-460.0,0.00022465,4]
[365845523,1749954644305,-3293.23,0.00022465,4]
[365845524,1749954644314,-460.0,0.00022465,4]
[365845525,1749954644323,-2865.98,0.00022465,4]
[365845526,1749954644332,-460.0,0.00022465,4]
[365845527,1749954644341,-3795.48,0.00022465,4]
[365845528,1749954644350,-1832.68,0.00022465,4]
[365845529,1749954644359,-460.0,0.00022465,4]
[365845530,1749954644367,-801.64,0.00022465,4]
[365845531,1749954644378,-346.97777241,0.00022465,4]
[365845532,1749954644387,-460.0,0.00022465,4]
[365845533,1749954644396,-1305.94,0.00022465,4]
[365845534,1749954644405,-460.0,0.00022465,4]
[365845535,1749954644414,-207.89161072,0.00022465,4]
[365845536,1749954644424,-460.0,0.00022465,4]
[365845537,1749954644433,-1468.44,0.00022465,4]
[365845538,1749954644445,-460.0,0.00022465,4]
[365845539,1749954644454,-460.0,0.00022465,4]
[365845540,1749954644464,-460.0,0.00022465,4]
[365845541,1749954644473,-876.43,0.00022465,4]
[365845542,1749954644482,-460.0,0.00022465,4]
[365845543,1749954644491,-723.62,0.00022465,4]
[365845544,1749954644500,-460.0,0.00022465,4]
[365845545,1749954644510,-460.0,0.00022465,4]
[365845546,1749954644519,-487.73,0.00022465,4]
[365845547,1749954644528,-460.0,0.00022465,4]
[365845548,1749954644538,-460.0,0.00022465,4]
[365845549,1749954644547,-478.49,0.00022465,4]
[365845550,1749954644556,-460.0,0.00022465,4]
[365845551,1749954644565,-460.0,0.00022465,4]
[365845552,1749954644574,-1956.94,0.00022465,4]
[365845553,1749954644583,-460.0,0.00022465,4]
[365845554,1749954644591,-460.0,0.00022465,4]
[365845555,1749954644601,-460.0,0.00022465,4]
[365845556,1749954644610,-460.0,0.00022465,4]
[365845557,1749954644620,-213.33211583,0.00022465,4]
[365845558,1749954644629,-599.55,0.00022465,4]
[365845559,1749954644638,-460.0,0.00022465,4]
[365845560,1749954644648,-771.81,0.00022465,4]
[365845561,1749954644657,-547.36,0.00022465,4]
[365845563,1749954644666,-460.0,0.00022465,4]
[365845564,1749954644675,-460.0,0.00022465,4]
[365845565,1749954644684,-400.0,0.00022465,4]
[365845567,1749954644694,-550.37,0.00022465,4]
[365845569,1749954644703,-196.23551993,0.00022465,4]
[365845571,1749954644712,-460.0,0.00022465,4]
[365845573,1749954644724,-848.24,0.00022465,4]
[365845575,1749954644735,-1181.15,0.00022465,4]
[365845577,1749954644745,-410.57483697,0.00022465,4]
[365845579,1749954644754,-1788.48,0.00022465,4]
[365845581,1749954644763,-3035.77,0.00022465,4]
[365845583,1749954644773,-573.35,0.00022465,4]
[365845585,1749954644782,-460.0,0.00022465,4]
[365845587,1749954644791,-418.06887411,0.00022465,4]
[365845589,1749954644801,-460.0,0.00022465,4]
[365845590,1749954644810,-460.0,0.00022465,4]
[365845592,1749954644820,-460.0,0.00022465,4]
[365845594,1749954644829,-2351.53,0.00022465,4]
[365845596,1749954644838,-460.0,0.00022465,4]
[365845599,1749954644848,-438.82868839,0.00022465,4]
[365845601,1749954644857,-460.0,0.00022465,4]
[365845603,1749954644867,-474.97,0.00022465,4]
[365845605,1749954644875,-599.49,0.00022465,4]
[365845607,1749954644885,-460.0,0.00022465,4]
[365845609,1749954644894,-497.51,0.00022465,4]
[365845610,1749954644903,-460.0,0.00022465,4]
[365845612,1749954644912,-460.0,0.00022465,4]
[365845614,1749954644921,-290.0,0.00022465,4]
[365845616,1749954644930,-460.0,0.00022465,4]
[365845618,1749954644939,-2043.55,0.00022465,4]
[365845620,1749954644949,-460.0,0.00022465,4]
[365845622,1749954644958,-683.09,0.00022465,4]
[365845624,1749954644967,-500.0,0.00022473,2]
[365845626,1749954644976,-500.0,0.00022473,2]
[365845628,1749954644985,-501.60488623,0.00022473,2]
[365845630,1749954644995,-519.043125,0.00022473,2]
[365845632,1749954645004,-500.0,0.00022473,2]
[365845634,1749954645013,-500.0,0.00022473,2]
[365845636,1749954645022,-500.0,0.00022473,2]
[365845638,1749954645032,-423.89848147,0.00022473,2]
[365845640,1749954645041,-380.68902381,0.00022473,2]
[365845642,1749954645050,-500.0,0.00022473,2]
[365845644,1749954645059,-500.0,0.00022473,2]
[365845646,1749954645068,-500.0,0.00022473,2]
[365845648,1749954645077,-500.0,0.00022473,2]
[365845650,1749954645086,-500.0,0.00022473,2]
[365845652,1749954645095,-500.0,0.00022473,2]
[365845654,1749954645104,-500.0,0.00022473,2]
[365845656,1749954645113,-501.64615102,0.00022473,2]
[365845658,1749954645122,-500.0,0.00022473,2]
[365845660,1749954645131,-500.0,0.00022473,2]
[365845662,1749954645141,-500.0,0.00022473,2]
[365845664,1749954645150,-600.0,0.00022473,2]
[365845666,1749954645159,-500.0,0.00022473,2]
[365845668,1749954645168,-500.9324502,0.00022473,2]
[365845670,1749954645178,-500.0,0.00022473,2]
[365845672,1749954645187,-500.0,0.00022473,2]
[365845674,1749954645214,-500.0,0.00022473,2]
[365845676,1749954645224,-503.34287607,0.00022473,2]
[365845678,1749954645233,-500.0,0.00022473,2]
[365845680,1749954645242,-248.80962452,0.00022521,2]
[365845682,1749954645251,-500.0,0.00022523,2]
[365845684,1749954645260,-168.0,0.00022573,2]
[365845686,1749954645270,-25466.55995291,0.00022718,2]
[365845688,1749954645278,-460.0,0.00022739,4]
[365845690,1749954645287,-569.99,0.00022739,4]
[365845692,1749954645296,-382.48236019,0.00022739,4]
[365845695,1749954645306,-349.59661168,0.00022739,4]
[365845696,1749954645315,-460.0,0.00022739,4]
[365845699,1749954645324,-353.95660925,0.00022739,4]
[365845701,1749954645334,-460.0,0.00022739,4]
[365845702,1749954645343,-460.0,0.00022739,4]
[365845705,1749954645353,-460.0,0.00022739,4]
[365845707,1749954645362,-460.0,0.00022739,4]
[365845709,1749954645371,-460.0,0.00022739,4]
[365845711,1749954645382,-460.0,0.00022739,4]
[365845713,1749954645391,-460.0,0.00022739,4]
[365845715,1749954645401,-407.34028706,0.00022739,4]
[365845717,1749954645410,-480.0,0.00022739,4]
[365845719,1749954645419,-340.0,0.00022739,4]
[365845721,1749954645428,-172.88115435,0.00022739,4]
[365845722,1749954645437,-460.0,0.00022739,4]
[365845725,1749954645447,-340.0,0.00022739,4]
[365845727,1749954645456,-460.0,0.00022739,4]
[365845729,1749954645465,-417.26534592,0.00022739,4]
[365845730,1749954645475,-217.15492325,0.00022739,4]
[365845732,1749954645484,-460.0,0.00022739,4]
[365845734,1749954645493,-346.70529747,0.00022739,4]
[365845736,1749954645503,-460.89,0.00022739,4]
[365845738,1749954645512,-460.0,0.00022739,4]
[365845740,1749954645522,-280.0,0.00022739,4]
[365845742,1749954645531,-348.09885447,0.00022739,4]
[365845744,1749954645540,-460.0,0.00022739,4]
[365845746,1749954645550,-460.0,0.00022739,4]
[365845748,1749954645559,-460.0,0.00022739,4]
[365845750,1749954645568,-460.0,0.00022739,4]
[365845752,1749954645577,-460.0,0.00022739,4]
[365845754,1749954645587,-590.85,0.00022739,4]
[365845756,1749954645596,-340.0,0.00022739,4]
[365845758,1749954645605,-582.37,0.00022739,4]
[365845760,1749954645615,-460.0,0.00022739,4]
[365845762,1749954645624,-460.0,0.00022739,4]
[365845764,1749954645633,-1067.47,0.00022739,4]
[365845766,1749954645642,-460.0,0.00022739,4]
[365845768,1749954645651,-460.0,0.00022739,4]
[365845770,1749954645660,-460.0,0.00022739,4]
[365845772,1749954645669,-460.0,0.00022739,4]
[365845774,1749954645678,-314.484381,0.00022739,4]
[365845776,1749954645687,-460.0,0.00022739,4]
[365845778,1749954645696,-460.0,0.00022739,4]
[365845780,1749954645705,-758.84,0.00022739,4]
[365845782,1749954645714,-460.0,0.00022739,4]
[365845784,1749954645727,-460.0,0.00022739,4]
[365845786,1749954645737,-460.0,0.00022739,4]
[365845788,1749954645746,-460.0,0.00022739,4]
[365845790,1749954645756,-460.0,0.00022739,4]
[365845792,1749954645767,-381.17,0.00022739,4]
[365845794,1749954645775,-4092.25,0.00022739,4]
[365845796,1749954645785,-460.0,0.00022739,4]
[365845798,1749954645794,-2832.93,0.00022739,4]
[365845800,1749954645804,-460.0,0.00022739,4]
[365845802,1749954645814,-460.0,0.00022739,4]
[365845804,1749954645823,-804.27,0.00022739,4]
[365845806,1749954645832,-831.16,0.00022739,4]
[365845808,1749954645841,-566.54,0.00022739,2]
[365845821,1749954645952,-684.13,0.00022739,4]
[365845823,1749954645962,-816.86,0.00022739,4]
[365845825,1749954645971,-609.0,0.00022739,4]
[365845827,1749954645981,-460.0,0.00022739,4]
[365845829,1749954645990,-577.95,0.00022739,4]
[365845831,1749954646000,-226.93643771,0.00022739,4]
[365845833,1749954646009,-460.0,0.00022739,4]
[365845835,1749954646019,-1734.77,0.00022739,4]
[365845837,1749954646028,-481.07,0.00022739,4]
[365845839,1749954646037,-287.3402249,0.00022739,4]
[365845841,1749954646047,-460.0,0.00022739,4]
[365845843,1749954646056,-460.0,0.00022739,4]
[365845845,1749954646065,-460.0,0.00022739,4]
[365845847,1749954646075,-460.0,0.00022739,4]
[365845850,1749954646084,-460.0,0.00022739,4]
[365845852,1749954646093,-460.0,0.00022739,4]
[365845854,1749954646104,-695.4,0.00022739,4]
[365845857,1749954646113,-3293.23,0.00022739,4]
[365845859,1749954646123,-460.0,0.00022739,4]
[365845861,1749954646132,-2865.98,0.00022739,4]
[365845862,1749954646143,-460.0,0.00022739,4]
[365845864,1749954646154,-3795.48,0.00022739,4]
[365845866,1749954646163,-1832.68,0.00022739,4]
[365845868,1749954646173,-460.0,0.00022739,4]
[365845870,1749954646182,-801.64,0.00022739,4]
[365845872,1749954646193,-460.0,0.00022739,4]
[365845874,1749954646203,-1305.94,0.00022739,4]
[365845876,1749954646212,-460.0,0.00022739,4]
[365845879,1749954646221,-460.0,0.00022739,4]
[365845883,1749954646230,-1468.44,0.00022739,4]
[365845885,1749954646239,-460.0,0.00022739,4]
[365845888,1749954646248,-460.0,0.00022739,4]
[365845890,1749954646258,-265.06262506,0.00022739,4]
[365845893,1749954646267,-876.43,0.00022739,4]
[365845895,1749954646276,-460.0,0.00022739,4]
[365845897,1749954646285,-723.62,0.00022739,4]
[365845899,1749954646294,-460.0,0.00022739,4]
[365845901,1749954646303,-250.09755956,0.00022739,4]
[365845903,1749954646312,-487.73,0.00022739,4]
[365845905,1749954646321,-460.0,0.00022739,4]
[365845907,1749954646330,-460.0,0.00022739,4]
[365845909,1749954646340,-478.49,0.00022739,4]
[365845912,1749954646351,-460.0,0.00022739,4]
[365845913,1749954646360,-460.0,0.00022739,4]
[365845915,1749954646369,-1956.94,0.00022739,4]
[365845917,1749954646378,-460.0,0.00022739,4]
[365845919,1749954646387,-460.0,0.00022739,4]
[365845921,1749954646396,-460.0,0.00022739,4]
[365845923,1749954646405,-460.0,0.00022739,4]
[365845925,1749954646414,-599.55,0.00022739,4]
[365845927,1749954646423,-460.0,0.00022739,4]
[365845929,1749954646432,-771.81,0.00022739,4]
[365845931,1749954646441,-547.36,0.00022739,4]
[365845933,1749954646451,-460.0,0.00022739,4]
[365845935,1749954646459,-460.0,0.00022739,4]
[365845937,1749954646469,-550.37,0.00022739,4]
[365845939,1749954646478,-460.0,0.00022739,4]
[365845941,1749954646487,-848.24,0.00022739,4]
[365845943,1749954646496,-1181.15,0.00022739,4]
[365845945,1749954646505,-1788.48,0.00022739,4]
[365845947,1749954646518,-3035.77,0.00022739,4]
[365845949,1749954646527,-573.35,0.00022739,4]
[365845951,1749954646536,-301.93447875,0.00022739,4]
[365845953,1749954646545,-460.0,0.00022739,4]
[365845955,1749954646554,-460.0,0.00022739,4]
[365845957,1749954646563,-2351.53,0.00022739,4]
[365845959,1749954646572,-460.0,0.00022739,4]
[365845961,1749954646581,-460.0,0.00022739,4]
[365845963,1749954646590,-474.97,0.00022739,4]
[365845965,1749954646600,-599.49,0.00022739,4]
[365845967,1749954646608,-460.0,0.00022739,4]
[365845969,1749954646618,-497.51,0.00022739,4]
[365845970,1749954646627,-375.52434879,0.00022739,4]
[365845972,1749954646636,-377.49,0.00022739,4]
[365845974,1749954646645,-460.0,0.00022739,4]
[365845976,1749954646655,-2043.55,0.00022739,4]
[365845978,1749954646664,-460.0,0.00022739,4]
[365845980,1749954646673,-683.09,0.00022739,4]
[365845982,1749954646682,-500.0,0.00022773,2]
[365845984,1749954646693,-324.68665771,0.00022773,2]
[365845986,1749954646702,-500.0,0.00022773,2]
[365845988,1749954646710,-500.0,0.00022773,2]
[365845990,1749954646720,-500.0,0.00022773,2]
[365845991,1749954646732,-168.0,0.00022836,2]
[365845993,1749954646741,-151.0,0.00022943,7]
[365845995,1749954646751,-204.472412,0.00022943,7]
[365845997,1749954646761,-204.472412,0.00022943,7]
[365845999,1749954646771,-151.0,0.00023,7]
[365846001,1749954646780,-204.472412,0.00023,7]
[365846003,1749954646789,-204.472412,0.00023,7]
[365846005,1749954646799,-5989.46906902,0.00023,2]
[365846007,1749954646809,-827.1631375,0.00023,2]
[365846009,1749954646819,-6022.6412642,0.00023,3]
[365846011,1749954646828,-45500.75441524,0.00023,20]
[365846013,1749954646837,-177.49206568,0.00023013,4]
[365846015,1749954646846,-460.0,0.00023013,4]
[365846017,1749954646856,-460.0,0.00023013,4]
[365846019,1749954646865,-350.0,0.00023013,4]
[365846021,1749954646875,-460.0,0.00023013,4]
[365846022,1749954646884,-360.0,0.00023013,4]
[365846024,1749954646893,-460.0,0.00023013,4]
[365846026,1749954646903,-460.0,0.00023013,4]
[365846028,1749954646912,-460.0,0.00023013,4]
[365846030,1749954646921,-363.06234241,0.00023013,4]
[365846032,1749954646930,-385.18331014,0.00023013,4]
[365846034,1749954646940,-460.0,0.00023013,4]
[365846036,1749954646949,-460.89,0.00023013,4]
[365846038,1749954646959,-460.0,0.00023013,4]
[365846040,1749954646968,-460.0,0.00023013,4]
[365846042,1749954646977,-460.0,0.00023013,4]
[365846044,1749954646986,-167.50055988,0.00023013,4]
[365846046,1749954646995,-460.0,0.00023013,4]
[365846048,1749954647004,-445.00232136,0.00023013,4]
[365846050,1749954647013,-590.85,0.00023013,4]
[365846052,1749954647023,-582.37,0.00023013,4]
[365846053,1749954647031,-460.0,0.00023013,4]
[365846054,1749954647040,-460.0,0.00023013,4]
[365846055,1749954647049,-1067.47,0.00023013,4]
[365846056,1749954647058,-460.0,0.00023013,4]
[365846057,1749954647067,-460.0,0.00023013,4]
[365846058,1749954647075,-370.0,0.00023013,4]
[365846059,1749954647085,-390.48604889,0.00023013,4]
[365846060,1749954647094,-238.42427491,0.00023013,4]
[365846061,1749954647103,-460.0,0.00023013,4]
[365846062,1749954647112,-758.84,0.00023013,4]
[365846063,1749954647121,-460.0,0.00023013,4]
[365846064,1749954647130,-460.0,0.00023013,4]
[365846065,1749954647140,-460.0,0.00023013,4]
[365846066,1749954647149,-551.46329867,0.00023013,4]
[365846067,1749954647158,-351.3782252,0.00023013,4]
[365846068,1749954647167,-4092.25,0.00023013,4]
[365846069,1749954647176,-460.0,0.00023013,4]
[365846071,1749954647185,-2832.93,0.00023013,4]
[365846073,1749954647195,-460.0,0.00023013,4]
[365846075,1749954647204,-199.2384521,0.00023013,4]
[365846077,1749954647213,-804.27,0.00023013,4]
[365846079,1749954647222,-831.16,0.00023013,4]
[365846081,1749954647232,-566.54,0.00023013,2]
[365846083,1749954647242,-684.13,0.00023013,4]
[365846085,1749954647250,-816.86,0.00023013,4]
[365846087,1749954647259,-609.0,0.00023013,4]
[365846089,1749954647269,-460.0,0.00023013,4]
[365846091,1749954647280,-577.95,0.00023013,4]
[365846093,1749954647289,-460.0,0.00023013,4]
[365846095,1749954647298,-1734.77,0.00023013,4]
[365846097,1749954647307,-481.07,0.00023013,4]
[365846099,1749954647316,-190.0,0.00023013,4]
[365846101,1749954647325,-460.0,0.00023013,4]
[365846103,1749954647334,-589.1219153,0.00023013,4]
[365846105,1749954647343,-460.0,0.00023013,4]
[365846107,1749954647352,-460.0,0.00023013,4]
[365846109,1749954647361,-460.0,0.00023013,4]
[365846111,1749954647371,-695.4,0.00023013,4]
[365846113,1749954647380,-3293.23,0.00023013,4]
[365846115,1749954647389,-460.0,0.00023013,4]
[365846117,1749954647399,-2865.98,0.00023013,4]
[365846119,1749954647408,-460.0,0.00023013,4]
[365846121,1749954647417,-3795.48,0.00023013,4]
[365846123,1749954647427,-1832.68,0.00023013,4]
[365846125,1749954647436,-460.0,0.00023013,4]
[365846127,1749954647445,-801.64,0.00023013,4]
[365846129,1749954647454,-460.0,0.00023013,4]
[365846131,1749954647463,-1305.94,0.00023013,4]
[365846133,1749954647472,-460.0,0.00023013,4]
[365846135,1749954647481,-460.0,0.00023013,4]
[365846137,1749954647490,-1468.44,0.00023013,4]
[365846139,1749954647499,-460.0,0.00023013,4]
[365846141,1749954647508,-460.0,0.00023013,4]
[365846143,1749954647518,-876.43,0.00023013,4]
[365846145,1749954647528,-460.0,0.00023013,4]
[365846147,1749954647537,-723.62,0.00023013,4]
[365846149,1749954647546,-460.0,0.00023013,4]
[365846151,1749954647555,-460.0,0.00023013,4]
[365846153,1749954647564,-487.73,0.00023013,4]
[365846155,1749954647573,-460.0,0.00023013,4]
[365846157,1749954647583,-478.49,0.00023013,4]
[365846159,1749954647592,-345.07155169,0.00023013,4]
[365846161,1749954647604,-460.0,0.00023013,4]
[365846163,1749954647613,-1956.94,0.00023013,4]
[365846165,1749954647623,-460.0,0.00023013,4]
[365846167,1749954647632,-460.0,0.00023013,4]
[365846169,1749954647641,-460.0,0.00023013,4]
[365846171,1749954647650,-409.88605255,0.00023013,4]
[365846173,1749954647659,-599.55,0.00023013,4]
[365846175,1749954647668,-460.0,0.00023013,4]
[365846177,1749954647677,-771.81,0.00023013,4]
[365846179,1749954647686,-547.36,0.00023013,4]
[365846181,1749954647695,-460.0,0.00023013,4]
[365846183,1749954647705,-460.0,0.00023013,4]
[365846185,1749954647714,-550.37,0.00023013,4]
[365846187,1749954647727,-460.0,0.00023013,4]
[365846189,1749954647736,-848.24,0.00023013,4]
[365846191,1749954647745,-1181.15,0.00023013,4]
[365846193,1749954647754,-1788.48,0.00023013,4]
[365846195,1749954647764,-3035.77,0.00023013,4]
[365846197,1749954647774,-573.35,0.00023013,4]
[365846199,1749954647784,-460.0,0.00023013,4]
[365846201,1749954647792,-460.0,0.00023013,4]
[365846203,1749954647803,-2351.53,0.00023013,4]
[365846205,1749954647812,-460.0,0.00023013,4]
[365846207,1749954647821,-460.0,0.00023013,4]
[365846209,1749954647830,-474.97,0.00023013,4]
[365846211,1749954647839,-599.49,0.00023013,4]
[365846213,1749954647848,-460.0,0.00023013,4]
[365846215,1749954647857,-497.51,0.00023013,4]
[365846217,1749954647866,-460.0,0.00023013,4]
[365846219,1749954647875,-2043.55,0.00023013,4]
[365846221,1749954647884,-460.0,0.00023013,4]
[365846223,1749954647893,-683.09,0.00023013,4]
[365846225,1749954647902,-500.0,0.00023015,2]
[365846227,1749954647912,-500.0,0.00023019,2]
[365846229,1749954647921,-304.26549004,0.00023021,2]
[365846231,1749954647930,-711.06366694,0.00023021,2]
[365846233,1749954647939,-501.65890684,0.00023021,2]
[365846235,1749954647947,-501.13444693,0.00023021,2]
[365846237,1749954647957,-284.08277887,0.00023021,2]
[365846239,1749954647966,-1001.32312854,0.00023021,2]
[365846241,1749954647975,-501.8180993,0.00023021,2]
[365846243,1749954647985,-1000.0,0.00023021,2]
[365846245,1749954647994,-501.1319147,0.00023021,2]
[365846247,1749954648003,-542.18707314,0.00023021,2]
[365846249,1749954648014,-1000.0,0.00023021,2]
[365846251,1749954648023,-1009.62589891,0.00023021,2]
[365846253,1749954648032,-1001.22424022,0.00023021,2]
[365846255,1749954648041,-1002.3111618,0.00023021,2]
[365846257,1749954648050,-1000.0,0.00023021,2]
[365846259,1749954648060,-1200.0,0.00023021,2]
[365846261,1749954648069,-1000.0,0.00023021,2]
[365846264,1749954648079,-1001.22979174,0.00023021,2]
[365846265,1749954648088,-1002.13599302,0.00023021,2]
[365846268,1749954648098,-1001.93465393,0.00023021,2]
[365846270,1749954648108,-1000.0,0.00023021,2]
[365846272,1749954648118,-604.606277,0.0002304,2]
[365846274,1749954648127,-151.0,0.00023054,7]
[365846276,1749954648137,-204.472412,0.00023054,7]
[365846277,1749954648146,-204.472412,0.00023054,7]
[365846280,1749954648157,-500.0,0.00023065,2]
[365846282,1749954648166,-500.0,0.00023099,2]
[365846284,1749954648176,-151.0,0.000231,7]
[365846286,1749954648185,-204.472412,0.000231,7]
[365846288,1749954648195,-822.58,0.000231,7]
[365846301,1749954648310,-204.472412,0.000231,7]
[365846303,1749954648320,-1983.35,0.000231,7]
[365846305,1749954648329,-500.0,0.000231,2]
[365846307,1749954648338,-500.0,0.00023117,2]
[365846309,1749954648348,-500.0,0.00023131,2]
[365846311,1749954648358,-500.0,0.00023167,2]
[365846313,1749954648368,-500.0,0.00023172,2]
[365846315,1749954648377,-500.0,0.00023182,2]
[365846317,1749954648387,-151.0,0.000232,7]
[365846320,1749954648397,-204.472412,0.000232,7]
[365846322,1749954648407,-204.472412,0.000232,7]
[365846324,1749954648416,-845.25843836,0.000232,7]
[365846326,1749954648426,-500.0,0.00023267,2]
[365846328,1749954648436,-150.0,0.00023273,2]
[365846330,1749954648445,-151.0,0.00023287,7]
[365846332,1749954648455,-204.472412,0.00023287,7]
[365846334,1749954648464,-204.472412,0.00023287,7]
[365846336,1749954648473,-250.0,0.00023287,4]
[365846337,1749954648483,-460.0,0.00023287,4]